[Event "*** SCC Grand Prix: Titled Tuesday Blitz"]
[Site "Chess.com"]
[Date "2020.06.23"]
[Round "5"]
[White "Twitch_ElhamBlitz05"]
[Black "GM_dmitrij"]
[Result "0-1"]
[WhiteElo "2767"]
[BlackElo "2913"]
[TimeControl "180+1"]
[EndTime "10:56:53 PDT"]
[Termination "GM_dmitrij won by checkmate"]

1. e4 {[%clk 0:03:00.9]} 1... c5 {[%clk 0:02:59.5]} 2. Nf3 {[%clk 0:03:00.5]}
2... d6 {[%clk 0:02:59.4]} 3. d4 {[%clk 0:03:01.1]} 3... cxd4 {[%clk 0:02:59.7]}
4. Nxd4 {[%clk 0:03:02]} 4... Nf6 {[%clk 0:03:00.3]} 5. f3 {[%clk 0:03:02.7]}
5... e5 {[%clk 0:02:58.4]} 6. Nb3 {[%clk 0:03:02.3]} 6... d5 {[%clk 0:02:56.6]}
7. Bg5 {[%clk 0:03:02.3]} 7... Be6 {[%clk 0:02:55.5]} 8. Bxf6 {[%clk 0:03:02]}
8... gxf6 {[%clk 0:02:55]} 9. exd5 {[%clk 0:03:02.9]} 9... Qxd5 {[%clk
0:02:53.6]} 10. Qxd5 {[%clk 0:03:01.2]} 10... Bxd5 {[%clk 0:02:54.5]} 11. Nc3
{[%clk 0:03:01.8]} 11... Be6 {[%clk 0:02:53.4]} 12. O-O-O {[%clk 0:03:01.6]}
12... Nc6 {[%clk 0:02:52]} 13. Bd3 {[%clk 0:02:58.8]} 13... O-O-O {[%clk
0:02:49.7]} 14. g4 {[%clk 0:02:58.2]} 14... h5 {[%clk 0:02:48.6]} 15. h3 {[%clk
0:02:57.4]} 15... Bb4 {[%clk 0:02:22.2]} 16. Ne4 {[%clk 0:02:55.6]} 16... Be7
{[%clk 0:02:20.1]} 17. Nec5 {[%clk 0:02:52.8]} 17... Kc7 {[%clk 0:02:08.3]} 18.
Nxe6+ {[%clk 0:02:31.1]} 18... fxe6 {[%clk 0:02:08]} 19. Bc4 {[%clk 0:01:48.4]}
19... Rxd1+ {[%clk 0:02:07.3]} 20. Rxd1 {[%clk 0:01:49.3]} 20... hxg4 {[%clk
0:02:07.5]} 21. hxg4 {[%clk 0:01:48.6]} 21... Nd8 {[%clk 0:02:08]} 22. Bd3
{[%clk 0:01:37.5]} 22... Rh3 {[%clk 0:02:02.5]} 23. Be4 {[%clk 0:01:33]} 23...
Nf7 {[%clk 0:02:01.8]} 24. Bxb7 {[%clk 0:00:56.4]} 24... Ng5 {[%clk 0:02:02]}
25. Rd3 {[%clk 0:00:50.5]} 25... Kxb7 {[%clk 0:01:02.9]} 26. Rd7+ {[%clk
0:00:48.9]} 26... Kc6 {[%clk 0:01:02.9]} 27. Rxe7 {[%clk 0:00:49.8]} 27... Nxf3
{[%clk 0:00:58.3]} 28. c4 {[%clk 0:00:38.8]} 28... Kd6 {[%clk 0:00:53.1]} 29.
Rxa7 {[%clk 0:00:36.5]} 29... e4 {[%clk 0:00:53.5]} 30. c5+ {[%clk 0:00:35.7]}
30... Ke5 {[%clk 0:00:46.8]} 31. c6 {[%clk 0:00:07.3]} 31... e3 {[%clk
0:00:46.6]} 32. Nc5 {[%clk 0:00:06.9]} 32... e2 {[%clk 0:00:24.5]} 33. Nd3+
{[%clk 0:00:06.5]} 33... Ke4 {[%clk 0:00:25]} 34. Ne1 {[%clk 0:00:04.1]} 34...
Nxe1 {[%clk 0:00:20.6]} 35. Re7 {[%clk 0:00:01.8]} 35... Nd3+ {[%clk 0:00:20.2]}
36. Kc2 {[%clk 0:00:02.5]} 36... e1=Q {[%clk 0:00:18.2]} 37. c7 {[%clk
0:00:03.1]} 37... Qc1+ {[%clk 0:00:17.6]} 38. Kb3 {[%clk 0:00:03]} 38... Ne5+
{[%clk 0:00:17.4]} 39. Ka4 {[%clk 0:00:02.2]} 39... Qc4+ {[%clk 0:00:16.9]} 40.
b4 {[%clk 0:00:03.1]} 40... Qc6+ {[%clk 0:00:15.5]} 41. b5 {[%clk 0:00:02.5]}
41... Qc5 {[%clk 0:00:14.7]} 42. Ka5 {[%clk 0:00:03.4]} 42... Ra3# {[%clk
0:00:14.1]} 0-1

[Event "*** SCC Grand Prix: Titled Tuesday Blitz"]
[Site "Chess.com"]
[Date "2020.06.23"]
[Round "5"]
[White "Sam_ChessMood"]
[Black "Sashadav97"]
[Result "1-0"]
[WhiteElo "2821"]
[BlackElo "2603"]
[TimeControl "180+1"]
[EndTime "10:56:54 PDT"]
[Termination "Sam_ChessMood won on time"]

1. e4 {[%clk 0:03:00.9]} 1... c5 {[%clk 0:02:56.4]} 2. Nf3 {[%clk 0:03:00.8]}
2... Nc6 {[%clk 0:02:56.9]} 3. d4 {[%clk 0:03:00.2]} 3... cxd4 {[%clk
0:02:57.4]} 4. Nxd4 {[%clk 0:03:01.1]} 4... Nf6 {[%clk 0:02:56.5]} 5. Nc3 {[%clk
0:02:57.4]} 5... d6 {[%clk 0:02:56.5]} 6. Bg5 {[%clk 0:02:56.2]} 6... e6 {[%clk
0:02:56.7]} 7. Qd2 {[%clk 0:02:54.4]} 7... a6 {[%clk 0:02:53.4]} 8. O-O-O {[%clk
0:02:54]} 8... Bd7 {[%clk 0:02:53.4]} 9. f3 {[%clk 0:02:51.9]} 9... Be7 {[%clk
0:02:53.4]} 10. Kb1 {[%clk 0:02:51]} 10... Qc7 {[%clk 0:02:52.5]} 11. h4 {[%clk
0:02:43.4]} 11... h6 {[%clk 0:02:47.6]} 12. Be3 {[%clk 0:02:43]} 12... h5 {[%clk
0:02:47.6]} 13. Bg5 {[%clk 0:02:41.9]} 13... Ne5 {[%clk 0:02:45.5]} 14. f4
{[%clk 0:02:27.1]} 14... Neg4 {[%clk 0:02:45]} 15. Nf3 {[%clk 0:01:48.4]} 15...
b5 {[%clk 0:02:28.8]} 16. e5 {[%clk 0:01:46.1]} 16... b4 {[%clk 0:02:27.1]} 17.
exf6 {[%clk 0:01:15.2]} 17... bxc3 {[%clk 0:02:09.1]} 18. fxg7 {[%clk
0:01:15.1]} 18... Rg8 {[%clk 0:02:09.1]} 19. Qd3 {[%clk 0:01:03.7]} 19... Rxg7
{[%clk 0:01:21.7]} 20. Bxe7 {[%clk 0:01:03.1]} 20... Kxe7 {[%clk 0:01:21.8]} 21.
Nd4 {[%clk 0:01:03.2]} 21... Nf2 {[%clk 0:01:01]} 22. Qf3 {[%clk 0:00:51.2]}
22... Rb8 {[%clk 0:00:41.1]} 23. b3 {[%clk 0:00:46.6]} 23... Nxd1 {[%clk
0:00:39.3]} 24. Qxd1 {[%clk 0:00:46.6]} 24... Qc5 {[%clk 0:00:39]} 25. Rh3
{[%clk 0:00:34.5]} 25... Qa3 {[%clk 0:00:35.6]} 26. Rxc3 {[%clk 0:00:33.9]}
26... Qa5 {[%clk 0:00:17.4]} 27. Re3 {[%clk 0:00:28.6]} 27... Qc5 {[%clk
0:00:16.3]} 28. f5 {[%clk 0:00:20.5]} 28... e5 {[%clk 0:00:08.7]} 29. Rf3 {[%clk
0:00:12.2]} 29... f6 {[%clk 0:00:08.6]} 30. Ne6 {[%clk 0:00:08.7]} 30... Bxe6
{[%clk 0:00:08]} 31. fxe6 {[%clk 0:00:09.6]} 31... Rc8 {[%clk 0:00:06.6]} 32.
Rf5 {[%clk 0:00:03.2]} 32... d5 {[%clk 0:00:04.7]} 33. Rxh5 {[%clk 0:00:03.2]}
33... a5 {[%clk 0:00:03.7]} 34. Rh6 {[%clk 0:00:03.5]} 34... a4 {[%clk
0:00:03.4]} 35. g4 {[%clk 0:00:04]} 1-0

[Event "*** SCC Grand Prix: Titled Tuesday Blitz"]
[Site "Chess.com"]
[Date "2020.06.23"]
[Round "5"]
[White "simplerXiao"]
[Black "MatyChess1"]
[Result "1-0"]
[WhiteElo "2433"]
[BlackElo "2536"]
[TimeControl "180+1"]
[EndTime "10:56:54 PDT"]
[Termination "simplerXiao won on time"]

1. Nf3 {[%clk 0:03:00.6]} 1... d5 {[%clk 0:02:57.4]} 2. g3 {[%clk 0:02:59.7]}
2... Nf6 {[%clk 0:02:57.1]} 3. Bg2 {[%clk 0:03:00.6]} 3... Bf5 {[%clk
0:02:57.5]} 4. O-O {[%clk 0:03:00.7]} 4... e6 {[%clk 0:02:58.1]} 5. d3 {[%clk
0:03:00.6]} 5... h6 {[%clk 0:02:58.5]} 6. Nbd2 {[%clk 0:03:00.9]} 6... c6 {[%clk
0:02:56.7]} 7. Qe1 {[%clk 0:03:01.4]} 7... Bh7 {[%clk 0:02:55.8]} 8. e4 {[%clk
0:03:01.2]} 8... Be7 {[%clk 0:02:55.6]} 9. Qe2 {[%clk 0:03:00.9]} 9... O-O
{[%clk 0:02:53]} 10. e5 {[%clk 0:03:00.9]} 10... Nfd7 {[%clk 0:02:52.6]} 11. h4
{[%clk 0:03:01.4]} 11... c5 {[%clk 0:02:52.1]} 12. Re1 {[%clk 0:02:52]} 12...
Nc6 {[%clk 0:02:52]} 13. Nf1 {[%clk 0:02:51.5]} 13... Re8 {[%clk 0:02:11.6]} 14.
Bf4 {[%clk 0:02:47.1]} 14... f6 {[%clk 0:02:06.6]} 15. Bh3 {[%clk 0:02:07.8]}
15... Bf8 {[%clk 0:01:53.4]} 16. exf6 {[%clk 0:01:55.2]} 16... Qxf6 {[%clk
0:01:54.3]} 17. Ne3 {[%clk 0:01:21.3]} 17... Nb6 {[%clk 0:01:07.6]} 18. Ng4
{[%clk 0:01:15.2]} 18... Qxb2 {[%clk 0:01:04.8]} 19. Nge5 {[%clk 0:01:15.1]}
19... Nb4 {[%clk 0:00:50.6]} 20. a3 {[%clk 0:01:06.9]} 20... Nc6 {[%clk
0:00:23.8]} 21. Reb1 {[%clk 0:01:00.4]} 21... Qc3 {[%clk 0:00:16.6]} 22. Bd2
{[%clk 0:00:58.8]} 22... Nd4 {[%clk 0:00:16.1]} 23. Nxd4 {[%clk 0:00:36.3]}
23... Qxd4 {[%clk 0:00:17]} 24. a4 {[%clk 0:00:30.8]} 24... Bd6 {[%clk
0:00:13.5]} 25. Nf3 {[%clk 0:00:27.7]} 25... Qf6 {[%clk 0:00:13.4]} 26. a5
{[%clk 0:00:27.1]} 26... Nd7 {[%clk 0:00:11.6]} 27. Nh2 {[%clk 0:00:25.6]} 27...
b6 {[%clk 0:00:08.2]} 28. Ng4 {[%clk 0:00:22.7]} 28... Qg6 {[%clk 0:00:04.1]}
29. axb6 {[%clk 0:00:19.7]} 29... axb6 {[%clk 0:00:05]} 30. Rxa8 {[%clk
0:00:18.7]} 30... Rxa8 {[%clk 0:00:05.9]} 31. h5 {[%clk 0:00:18.7]} 31... Qe8
{[%clk 0:00:04.9]} 32. Ne3 {[%clk 0:00:15.1]} 32... Nf8 {[%clk 0:00:04.4]} 33.
Rxb6 {[%clk 0:00:12.6]} 33... Be5 {[%clk 0:00:03.2]} 34. Nf1 {[%clk 0:00:11.6]}
34... Bf6 {[%clk 0:00:02.4]} 35. Ne3 {[%clk 0:00:09.5]} 35... Rb8 {[%clk
0:00:01.3]} 36. Rxb8 {[%clk 0:00:05.4]} 36... Qxb8 {[%clk 0:00:02.2]} 37. Ng4
{[%clk 0:00:05.6]} 37... Qd6 {[%clk 0:00:01.5]} 38. Kh2 {[%clk 0:00:05.9]} 38...
Bg5 {[%clk 0:00:01]} 39. f4 {[%clk 0:00:05]} 1-0

[Event "*** SCC Grand Prix: Titled Tuesday Blitz"]
[Site "Chess.com"]
[Date "2020.06.23"]
[Round "5"]
[White "Andrii_Prydun"]
[Black "GMMatamoros"]
[Result "1/2-1/2"]
[WhiteElo "2389"]
[BlackElo "2541"]
[TimeControl "180+1"]
[EndTime "10:56:56 PDT"]
[Termination "Game drawn by agreement"]

1. d4 {[%clk 0:03:00.9]} 1... Nf6 {[%clk 0:02:56.5]} 2. Nc3 {[%clk 0:03:01]}
2... d5 {[%clk 0:02:55.3]} 3. Bf4 {[%clk 0:03:01.6]} 3... e6 {[%clk 0:02:54.2]}
4. Nb5 {[%clk 0:03:01.9]} 4... Na6 {[%clk 0:02:54]} 5. e3 {[%clk 0:03:02.5]}
5... c6 {[%clk 0:02:44.6]} 6. Nc3 {[%clk 0:03:02.4]} 6... Bd6 {[%clk 0:02:43]}
7. Nf3 {[%clk 0:02:59.4]} 7... O-O {[%clk 0:02:36.8]} 8. Bd3 {[%clk 0:02:58.9]}
8... c5 {[%clk 0:02:34.7]} 9. O-O {[%clk 0:02:57.2]} 9... Nb4 {[%clk 0:02:34.4]}
10. Bxd6 {[%clk 0:02:43.3]} 10... Qxd6 {[%clk 0:02:33.5]} 11. dxc5 {[%clk
0:02:42.4]} 11... Qxc5 {[%clk 0:02:32.8]} 12. e4 {[%clk 0:02:39.2]} 12... b6
{[%clk 0:01:52.2]} 13. e5 {[%clk 0:02:25]} 13... Nxd3 {[%clk 0:01:51.1]} 14.
exf6 {[%clk 0:02:22]} 14... Nxb2 {[%clk 0:01:50.3]} 15. Qd2 {[%clk 0:02:21.6]}
15... gxf6 {[%clk 0:01:45.1]} 16. Rab1 {[%clk 0:02:19]} 16... Nc4 {[%clk
0:01:43]} 17. Qh6 {[%clk 0:02:18.9]} 17... Qe7 {[%clk 0:01:43.5]} 18. Rb3 {[%clk
0:02:18.2]} 18... Kh8 {[%clk 0:01:32.5]} 19. Nd4 {[%clk 0:01:48.3]} 19... Nd6
{[%clk 0:00:34]} 20. Ncb5 {[%clk 0:01:08.1]} 20... e5 {[%clk 0:00:23.7]} 21. Nc6
{[%clk 0:01:04.1]} 21... Nf5 {[%clk 0:00:22.3]} 22. Nxe7 {[%clk 0:00:33]} 22...
Nxh6 {[%clk 0:00:21.7]} 23. Nc7 {[%clk 0:00:21.4]} 23... Rb8 {[%clk 0:00:21.2]}
24. Nexd5 {[%clk 0:00:21.3]} 24... Be6 {[%clk 0:00:21]} 25. Nxe6 {[%clk
0:00:18.1]} 25... fxe6 {[%clk 0:00:21.9]} 26. Ne3 {[%clk 0:00:17.6]} 26... Rfd8
{[%clk 0:00:21.3]} 27. a4 {[%clk 0:00:16.5]} 27... Rbc8 {[%clk 0:00:20.8]} 28.
Ra1 {[%clk 0:00:15.6]} 28... Rc5 {[%clk 0:00:18.9]} 29. a5 {[%clk 0:00:14.5]}
29... Rxa5 {[%clk 0:00:18.1]} 30. Rxa5 {[%clk 0:00:14.5]} 30... bxa5 {[%clk
0:00:19]} 31. g4 {[%clk 0:00:13.6]} 31... f5 {[%clk 0:00:17.8]} 32. Ra3 {[%clk
0:00:12.7]} 32... Nxg4 {[%clk 0:00:17.4]} 33. Nxg4 {[%clk 0:00:12.8]} 33... fxg4
{[%clk 0:00:18.3]} 34. Rxa5 {[%clk 0:00:13.3]} 34... Rd5 {[%clk 0:00:18.1]} 35.
Rxa7 {[%clk 0:00:13.1]} 35... Rc5 {[%clk 0:00:18.4]} 36. Re7 {[%clk 0:00:12.4]}
36... Rxc2 {[%clk 0:00:17.6]} 37. Rxe6 {[%clk 0:00:12.3]} 37... Rc5 {[%clk
0:00:17.7]} 38. Re7 {[%clk 0:00:11.4]} 38... Kg8 {[%clk 0:00:17.5]} 39. Kg2
{[%clk 0:00:11.3]} 39... h5 {[%clk 0:00:17.6]} 40. Kg3 {[%clk 0:00:11.7]} 40...
Rc3+ {[%clk 0:00:17.5]} 41. Kh4 {[%clk 0:00:11.5]} 41... Rh3+ {[%clk 0:00:17.2]}
42. Kg5 {[%clk 0:00:11.9]} 42... Rxh2 {[%clk 0:00:17.5]} 43. Rxe5 {[%clk
0:00:11.1]} 43... Rxf2 {[%clk 0:00:17.5]} 44. Kxh5 {[%clk 0:00:10.7]} 44... g3
{[%clk 0:00:18]} 45. Rg5+ {[%clk 0:00:10.6]} 45... Kf7 {[%clk 0:00:17.6]} 46.
Rxg3 {[%clk 0:00:11.1]} 46... Rf6 {[%clk 0:00:17.3]} 47. Rg5 {[%clk 0:00:10.2]}
1/2-1/2

[Event "*** SCC Grand Prix: Titled Tuesday Blitz"]
[Site "Chess.com"]
[Date "2020.06.23"]
[Round "5"]
[White "saikrishnaReturns"]
[Black "David_Paravyan"]
[Result "0-1"]
[WhiteElo "2631"]
[BlackElo "2919"]
[TimeControl "180+1"]
[EndTime "10:56:57 PDT"]
[Termination "David_Paravyan won by resignation"]

1. e4 {[%clk 0:03:00.9]} 1... c5 {[%clk 0:03:00.1]} 2. Nf3 {[%clk 0:03:00.7]}
2... d6 {[%clk 0:03:00.8]} 3. d4 {[%clk 0:03:00.5]} 3... cxd4 {[%clk 0:03:01.7]}
4. Nxd4 {[%clk 0:03:00.9]} 4... Nf6 {[%clk 0:03:02.2]} 5. Nc3 {[%clk 0:03:01.5]}
5... a6 {[%clk 0:03:01.4]} 6. Bg5 {[%clk 0:03:01.6]} 6... e6 {[%clk 0:02:59.5]}
7. f4 {[%clk 0:03:01.8]} 7... Qb6 {[%clk 0:03:00]} 8. Qd2 {[%clk 0:03:02]} 8...
Nc6 {[%clk 0:03:00.6]} 9. O-O-O {[%clk 0:03:00.8]} 9... Nxd4 {[%clk 0:02:59.7]}
10. Qxd4 {[%clk 0:02:57.1]} 10... Qxd4 {[%clk 0:03:00.6]} 11. Rxd4 {[%clk
0:02:57.2]} 11... Bd7 {[%clk 0:02:53.3]} 12. Be2 {[%clk 0:02:39.5]} 12... Bc6
{[%clk 0:02:52]} 13. Rhd1 {[%clk 0:02:20.3]} 13... Be7 {[%clk 0:02:42.9]} 14.
Bxf6 {[%clk 0:01:46.6]} 14... Bxf6 {[%clk 0:02:43]} 15. Rxd6 {[%clk 0:01:46.1]}
15... Bxc3 {[%clk 0:02:42.4]} 16. bxc3 {[%clk 0:01:46.9]} 16... Bxe4 {[%clk
0:02:42.7]} 17. Bf3 {[%clk 0:01:47.2]} 17... Bxf3 {[%clk 0:02:41.4]} 18. gxf3
{[%clk 0:01:48.1]} 18... O-O {[%clk 0:02:35.3]} 19. Rb6 {[%clk 0:01:47.6]} 19...
Rac8 {[%clk 0:02:31.4]} 20. Kb2 {[%clk 0:01:34.8]} 20... Rc7 {[%clk 0:02:31.3]}
21. Rd4 {[%clk 0:01:10.4]} 21... Rfc8 {[%clk 0:02:31.2]} 22. c4 {[%clk
0:01:10.8]} 22... h5 {[%clk 0:02:17.3]} 23. Kb3 {[%clk 0:01:04.7]} 23... h4
{[%clk 0:02:11.8]} 24. f5 {[%clk 0:00:56.8]} 24... exf5 {[%clk 0:02:11.9]} 25.
Rxh4 {[%clk 0:00:56.8]} 25... Re8 {[%clk 0:02:12.6]} 26. Rd6 {[%clk 0:00:39.7]}
26... g6 {[%clk 0:02:09.6]} 27. a4 {[%clk 0:00:31.1]} 27... Kg7 {[%clk
0:02:05.7]} 28. a5 {[%clk 0:00:26.9]} 28... Re5 {[%clk 0:02:03.5]} 29. Kb4
{[%clk 0:00:25.4]} 29... Re2 {[%clk 0:02:03.3]} 30. Kb3 {[%clk 0:00:20.1]} 30...
Rf2 {[%clk 0:01:55.9]} 31. Rh3 {[%clk 0:00:17.5]} 31... Re7 {[%clk 0:01:53.1]}
32. Rb6 {[%clk 0:00:13.3]} 32... f4 {[%clk 0:01:45.8]} 33. c3 {[%clk 0:00:12.6]}
33... Rc7 {[%clk 0:01:18.3]} 34. c5 {[%clk 0:00:09.2]} 34... Rxc5 {[%clk
0:01:17.4]} 35. Rxb7 {[%clk 0:00:09.1]} 35... Rxa5 {[%clk 0:01:17.7]} 36. c4
{[%clk 0:00:09.5]} 36... Re5 {[%clk 0:01:15.5]} 37. Kc3 {[%clk 0:00:08.5]} 37...
Re3+ {[%clk 0:01:05.9]} 38. Kd4 {[%clk 0:00:08.8]} 38... Rd2+ {[%clk 0:01:05.1]}
39. Kc5 {[%clk 0:00:08.8]} 39... Re5+ {[%clk 0:01:05.8]} 40. Kb6 {[%clk
0:00:04]} 40... Rb2+ {[%clk 0:00:53.9]} 41. Kxa6 {[%clk 0:00:04.2]} 41... Rxb7
{[%clk 0:00:54.6]} 42. Kxb7 {[%clk 0:00:05.1]} 42... Rc5 {[%clk 0:00:55.2]} 43.
Kb6 {[%clk 0:00:05]} 43... Rxc4 {[%clk 0:00:55.2]} 44. Kb5 {[%clk 0:00:04.5]}
44... Rc2 {[%clk 0:00:47.4]} 45. Rh4 {[%clk 0:00:03.9]} 45... g5 {[%clk
0:00:47.8]} 46. Rg4 {[%clk 0:00:04.4]} 46... Kg6 {[%clk 0:00:48.4]} 47. h4
{[%clk 0:00:04.8]} 47... f6 {[%clk 0:00:49.1]} 48. hxg5 {[%clk 0:00:05.2]} 48...
fxg5 {[%clk 0:00:50]} 49. Kb4 {[%clk 0:00:05.2]} 49... Kf5 {[%clk 0:00:48.1]}
50. Rg1 {[%clk 0:00:04.7]} 50... Rf2 {[%clk 0:00:48.2]} 51. Kc4 {[%clk
0:00:04.6]} 51... Rxf3 {[%clk 0:00:48.3]} 52. Kd4 {[%clk 0:00:05.3]} 52... Ra3
{[%clk 0:00:48.3]} 53. Rc1 {[%clk 0:00:05.5]} 53... Kg4 {[%clk 0:00:47.2]} 54.
Rc7 {[%clk 0:00:05]} 54... Kf3 {[%clk 0:00:46.8]} 55. Rc2 {[%clk 0:00:04]} 55...
g4 {[%clk 0:00:46.1]} 56. Rc1 {[%clk 0:00:04.2]} 56... g3 {[%clk 0:00:46.4]} 57.
Ra1 {[%clk 0:00:04.2]} 57... Rxa1 {[%clk 0:00:45.4]} 0-1

[Event "*** SCC Grand Prix: Titled Tuesday Blitz"]
[Site "Chess.com"]
[Date "2020.06.23"]
[Round "5"]
[White "IMHansNiemann"]
[Black "cassoulet"]
[Result "0-1"]
[WhiteElo "2956"]
[BlackElo "2667"]
[TimeControl "180+1"]
[EndTime "10:56:58 PDT"]
[Termination "cassoulet won by resignation"]

1. d4 {[%clk 0:02:53]} 1... Nf6 {[%clk 0:02:59.8]} 2. c4 {[%clk 0:02:50.9]} 2...
g6 {[%clk 0:03:00.1]} 3. Nc3 {[%clk 0:02:50.5]} 3... d5 {[%clk 0:03:00.2]} 4.
Bg5 {[%clk 0:02:49.4]} 4... Ne4 {[%clk 0:02:57.2]} 5. Bh4 {[%clk 0:02:44]} 5...
Nxc3 {[%clk 0:02:56.9]} 6. bxc3 {[%clk 0:02:43.1]} 6... Bg7 {[%clk 0:02:57.5]}
7. e3 {[%clk 0:02:43.4]} 7... dxc4 {[%clk 0:02:55.6]} 8. Bxc4 {[%clk 0:02:42.5]}
8... O-O {[%clk 0:02:56.2]} 9. Nf3 {[%clk 0:02:42.9]} 9... c5 {[%clk 0:02:56.1]}
10. O-O {[%clk 0:02:43.3]} 10... cxd4 {[%clk 0:02:55.9]} 11. cxd4 {[%clk
0:02:42.7]} 11... Nc6 {[%clk 0:02:56.4]} 12. Qe2 {[%clk 0:02:33.5]} 12... Na5
{[%clk 0:02:56.2]} 13. Bd3 {[%clk 0:02:32.8]} 13... b6 {[%clk 0:02:56.6]} 14.
Be4 {[%clk 0:02:29.7]} 14... Bb7 {[%clk 0:02:57]} 15. Bxb7 {[%clk 0:02:28.4]}
15... Nxb7 {[%clk 0:02:57.9]} 16. Rac1 {[%clk 0:02:25.2]} 16... Qd7 {[%clk
0:02:53.8]} 17. Qa6 {[%clk 0:02:18.6]} 17... Na5 {[%clk 0:02:48.9]} 18. Rc2
{[%clk 0:02:14.3]} 18... Rfc8 {[%clk 0:02:32.6]} 19. Rxc8+ {[%clk 0:02:11.9]}
19... Qxc8 {[%clk 0:02:24.8]} 20. Qxc8+ {[%clk 0:02:08.5]} 20... Rxc8 {[%clk
0:02:25.7]} 21. Bxe7 {[%clk 0:02:08.4]} 21... Rc2 {[%clk 0:02:26.3]} 22. d5
{[%clk 0:01:59.7]} 22... Bf8 {[%clk 0:02:12.1]} 23. d6 {[%clk 0:01:36.4]} 23...
Nc6 {[%clk 0:02:11.1]} 24. Nd4 {[%clk 0:01:26.8]} 24... Nxd4 {[%clk 0:02:02.8]}
25. exd4 {[%clk 0:01:27.7]} 25... Bxe7 {[%clk 0:02:01.4]} 26. dxe7 {[%clk
0:01:25.7]} 26... Re2 {[%clk 0:02:01.9]} 27. Rd1 {[%clk 0:01:10.2]} 27... Rxe7
{[%clk 0:02:01.1]} 28. Kf1 {[%clk 0:01:10.4]} 28... Kf8 {[%clk 0:02:01.2]} 29.
Rc1 {[%clk 0:01:02.6]} 29... Re4 {[%clk 0:01:58.3]} 30. Rc8+ {[%clk 0:01:00.3]}
30... Kg7 {[%clk 0:01:56.6]} 31. Rd8 {[%clk 0:00:59.4]} 31... Kf6 {[%clk
0:01:56.6]} 32. f3 {[%clk 0:00:57.9]} 32... Re3 {[%clk 0:01:56.8]} 33. Rc8
{[%clk 0:00:49.7]} 33... Rd3 {[%clk 0:01:52.5]} 34. Rc7 {[%clk 0:00:45.6]} 34...
Ra3 {[%clk 0:01:49.9]} 35. d5 {[%clk 0:00:44.4]} 35... Rxa2 {[%clk 0:01:45.3]}
36. d6 {[%clk 0:00:44.2]} 36... Rd2 {[%clk 0:01:42.8]} 37. d7 {[%clk 0:00:41.9]}
37... Ke6 {[%clk 0:01:40.9]} 38. Rxa7 {[%clk 0:00:38.3]} 38... Rxd7 {[%clk
0:01:40.5]} 39. Ra6 {[%clk 0:00:38.8]} 39... Rb7 {[%clk 0:01:40.1]} 40. Ke2
{[%clk 0:00:38.8]} 40... Kd5 {[%clk 0:01:40.5]} 41. Kd3 {[%clk 0:00:39.1]} 41...
Kc5 {[%clk 0:01:39.5]} 42. Ra8 {[%clk 0:00:39.3]} 42... Rd7+ {[%clk 0:01:38.3]}
43. Kc3 {[%clk 0:00:39.2]} 43... Kb5 {[%clk 0:01:35.1]} 44. Rh8 {[%clk
0:00:36.1]} 44... h5 {[%clk 0:01:35.3]} 45. Rf8 {[%clk 0:00:36.3]} 45... Rc7+
{[%clk 0:01:33.7]} 46. Kb3 {[%clk 0:00:34.3]} 46... Re7 {[%clk 0:01:33.6]} 47.
Kc3 {[%clk 0:00:27.9]} 47... Kc6 {[%clk 0:01:31.1]} 48. Kd4 {[%clk 0:00:25.5]}
48... b5 {[%clk 0:01:30.5]} 49. Rc8+ {[%clk 0:00:20.5]} 49... Kb7 {[%clk
0:01:29.9]} 50. Rf8 {[%clk 0:00:17.4]} 50... Rc7 {[%clk 0:01:29.1]} 51. Re8
{[%clk 0:00:13.9]} 51... b4 {[%clk 0:01:25]} 52. Kd5 {[%clk 0:00:14.1]} 52...
Kb6 {[%clk 0:01:23.3]} 53. Rb8+ {[%clk 0:00:13.6]} 53... Ka5 {[%clk 0:01:22.8]}
54. g4 {[%clk 0:00:09.3]} 54... Rc3 {[%clk 0:01:17]} 55. gxh5 {[%clk 0:00:08]}
55... gxh5 {[%clk 0:01:17.9]} 56. f4 {[%clk 0:00:07]} 56... b3 {[%clk
0:01:17.8]} 57. Rb7 {[%clk 0:00:06.9]} 57... f5 {[%clk 0:01:15.8]} 58. Ke5
{[%clk 0:00:06.3]} 58... Rc5+ {[%clk 0:01:15.8]} 59. Kf6 {[%clk 0:00:06.3]}
59... Rb5 {[%clk 0:01:16.7]} 60. Ra7+ {[%clk 0:00:06.6]} 60... Kb4 {[%clk
0:01:16.8]} 61. Ra1 {[%clk 0:00:07]} 61... b2 {[%clk 0:01:17.1]} 62. Rb1 {[%clk
0:00:06.3]} 62... Kc3 {[%clk 0:01:17.4]} 63. Kg5 {[%clk 0:00:06.6]} 63... Kc2
{[%clk 0:01:17.2]} 64. Rxb2+ {[%clk 0:00:06.6]} 64... Kxb2 {[%clk 0:01:18.1]}
65. Kxh5 {[%clk 0:00:07.1]} 65... Kc3 {[%clk 0:01:19]} 66. Kg6 {[%clk
0:00:05.3]} 66... Kd4 {[%clk 0:01:19.9]} 67. h4 {[%clk 0:00:05.7]} 67... Ke4
{[%clk 0:01:20.3]} 68. Kg5 {[%clk 0:00:06.2]} 68... Rb1 {[%clk 0:01:18.9]} 69.
h5 {[%clk 0:00:06.3]} 69... Rg1+ {[%clk 0:01:19.4]} 70. Kf6 {[%clk 0:00:06.9]}
70... Kxf4 {[%clk 0:01:20.3]} 71. h6 {[%clk 0:00:07.8]} 71... Rh1 {[%clk
0:01:20.7]} 72. Kg7 {[%clk 0:00:08]} 72... Kg4 {[%clk 0:01:20.9]} 73. h7 {[%clk
0:00:08.9]} 73... Rxh7+ {[%clk 0:01:21]} 74. Kxh7 {[%clk 0:00:09.8]} 74... f4
{[%clk 0:01:21.8]} 75. Kg6 {[%clk 0:00:09.9]} 75... f3 {[%clk 0:01:22.7]} 0-1